bitfinex/quotes_BTCUSD_20241022
["timestamp","ask_amount","ask_price","bid_price","bid_amount"]
[1729562132485,0.148178,67486.0,67485.0,0.001676]
[1729562132717,0.16866989,67486.0,67485.0,0.001676]
[1729562133148,0.31684789,67486.0,67485.0,0.001676]
[1729562134482,0.16866989,67486.0,67485.0,0.001676]
[1729562134703,0.31684789,67486.0,67485.0,0.001676]
[1729562134925,0.31684789,67486.0,67485.0,0.01101097]
[1729562135140,0.31684789,67486.0,67485.0,0.004676]
[1729562135853,0.31684789,67486.0,67485.0,0.15363515]
[1729562136084,0.40830008,67486.0,67485.0,0.15363515]
[1729562137401,0.16866989,67486.0,67485.0,0.15363515]
[1729562137849,0.16866989,67486.0,67485.0,0.16297012]
[1729562138067,0.16866989,67486.0,67485.0,0.16197012]
[1729562138495,0.16866989,67486.0,67485.0,0.16297012]
[1729562138717,0.16866989,67486.0,67485.0,0.16597012]
[1729562138939,0.0823,67495.0,67487.0,0.00499955]
[1729562138940,0.16866989,67495.0,67487.0,0.00499955]
[1729562139165,0.22312298,67494.0,67488.0,0.1539587]
[1729562139392,0.22312298,67494.0,67489.0,0.14817]
[1729562139577,0.22312298,67494.0,67490.0,0.14895915]
[1729562139578,0.03917929,67493.0,67490.0,0.14895915]
[1729562139814,0.03917929,67493.0,67490.0,0.15840867]
[1729562141032,0.16866989,67495.0,67490.0,0.15840867]
[1729562141268,0.16866989,67495.0,67490.0,0.16240867]
[1729562142060,0.16866989,67495.0,67490.0,0.15840867]
[1729562142270,0.16866989,67495.0,67490.0,0.30657767]
[1729562142471,0.16866989,67495.0,67490.0,0.30757767]
[1729562142681,0.005,67501.0,67490.0,0.15940867]
[1729562142682,0.16866989,67501.0,67490.0,0.15940867]
[1729562142879,0.296287,67502.0,67490.0,0.15940867]
[1729562142880,0.22312298,67500.0,67493.0,0.15316055]
[1729562143159,0.22312298,67500.0,67494.0,0.14895915]
[1729562143523,0.31681589,67501.0,67494.0,0.15840867]
[1729562143822,0.16866989,67501.0,67494.0,0.15840867]
[1729562144025,0.148148,67500.0,67494.0,0.15840867]
[1729562144877,0.06131029,67499.0,67494.0,0.15840867]
[1729562145052,0.16866989,67501.0,67494.0,0.16040867]
[1729562145241,0.148148,67500.0,67494.0,0.16040867]
[1729562145457,0.148148,67500.0,67494.0,0.16340867]
[1729562145706,0.148148,67500.0,67494.0,0.16040867]
[1729562145904,0.16866989,67501.0,67494.0,0.16040867]
[1729562146022,0.148151,67499.0,67494.0,0.16440867]
[1729562146423,0.148151,67499.0,67494.0,0.15840867]
[1729562146629,0.148151,67499.0,67494.0,0.16040867]
[1729562147031,0.16866989,67501.0,67494.0,0.15840867]
[1729562147231,0.24529268,67501.0,67494.0,0.15840867]
[1729562147437,0.39343868,67501.0,67494.0,0.30956867]
[1729562147661,0.24529268,67501.0,67494.0,0.16440867]
[1729562147864,0.24529268,67501.0,67494.0,0.15840867]
[1729562148297,0.39343968,67501.0,67494.0,0.16040867]
[1729562148500,0.20280677,67500.0,67494.0,0.16040867]
[1729562148706,0.20280677,67500.0,67494.0,0.16140867]
[1729562148927,0.14815,67499.0,67494.0,0.16140867]
[1729562149152,0.05465777,67500.0,67494.0,0.16140867]
[1729562149590,0.05465777,67500.0,67494.0,0.15940867]
[1729562149806,0.148153,67498.0,67494.0,0.15940867]
[1729562150030,0.148153,67498.0,67494.0,0.15840867]
[1729562150520,0.148153,67498.0,67494.0,0.16040867]
[1729562150957,0.148153,67498.0,67494.0,0.16140867]
[1729562151170,0.148153,67498.0,67494.0,0.16240867]
[1729562151395,0.03091527,67499.0,67494.0,0.31056867]
[1729562151612,0.16866989,67501.0,67494.0,0.16740867]
[1729562151836,0.31681689,67501.0,67494.0,0.16740867]
[1729562152038,0.148151,67499.0,67494.0,0.16740867]
[1729562152278,0.148151,67499.0,67494.0,0.16240867]
[1729562152483,0.16866989,67504.0,67494.0,0.16240867]
[1729562152712,0.28778577,67504.0,67497.0,0.148152]
[1729562152932,0.60459466,67504.0,67498.0,0.14895915]
[1729562153143,0.06466279,67504.0,67500.0,0.148146]
[1729562153359,0.16866989,67510.0,67501.0,0.14895915]
[1729562153583,0.22312298,67509.0,67502.0,0.15314055]
[1729562153795,0.148135,67506.0,67503.0,0.14895915]
[1729562154264,0.002,67504.0,67503.0,0.15849906]
[1729562154482,0.151139,67504.0,67503.0,0.15849906]
[1729562154703,0.40072818,67504.0,67503.0,0.15849906]
[1729562154915,0.40072818,67504.0,67503.0,0.15495915]
[1729562155361,0.40072818,67504.0,67503.0,0.16195915]
[1729562155589,0.48022818,67504.0,67503.0,0.16195915]
[1729562155798,0.62837118,67504.0,67494.0,0.00496]
[1729562156002,0.148158,67496.0,67495.0,0.37208213]
[1729562156205,0.31682789,67496.0,67495.0,0.14895915]
[1729562156639,0.31682789,67496.0,67495.0,0.15848244]
[1729562156855,0.31682789,67496.0,67495.0,0.14895915]
[1729562157057,0.31682789,67496.0,67495.0,0.15848244]
[1729562157262,0.31682789,67496.0,67495.0,0.16348244]
[1729562157471,0.1236559,67504.0,67495.0,0.15395915]
[1729562157693,0.22312298,67503.0,67501.0,0.148144]
[1729562157907,0.22312298,67503.0,67502.0,0.14895915]
[1729562158176,0.148134,67507.0,67502.0,0.14895915]
[1729562158359,0.148134,67507.0,67502.0,0.15850286]
[1729562158360,0.000827,67504.0,67502.0,0.15850286]
[1729562159667,0.000827,67504.0,67502.0,0.30664586]
[1729562159668,0.001,67503.0,67502.0,0.30664586]
[1729562160104,0.000827,67504.0,67502.0,0.30664586]
[1729562160105,0.000827,67504.0,67503.0,0.148141]
[1729562160320,0.000827,67504.0,67503.0,0.29710015]
[1729562160818,0.000827,67504.0,67503.0,0.30664386]
[1729562161398,0.000827,67504.0,67503.0,0.31464386]
[1729562162584,0.001827,67504.0,67503.0,0.32164386]
[1729562167102,0.001827,67504.0,67503.0,0.17350286]
[1729562167347,0.07438847,67504.0,67503.0,0.17350286]
[1729562169919,0.07438847,67504.0,67503.0,0.17515686]
[1729562170572,0.30372747,67504.0,67503.0,0.02619771]
[1729562170780,0.46740892,67504.0,67503.0,0.016654]
[1729562171433,0.57813176,67504.0,67503.0,0.016654]
[1729562172244,0.58013176,67504.0,67503.0,0.016654]
[1729562172451,0.46940892,67504.0,67503.0,0.016654]
[1729562172848,0.46740892,67504.0,67503.0,0.016654]
[1729562175113,0.16550845,67504.0,67503.0,0.16561315]
[1729562175312,0.06834951,67504.0,67503.0,0.16561315]
[1729562175758,0.001827,67504.0,67503.0,0.1751306]
[1729562175972,0.04617526,67504.0,67503.0,0.1751306]
[1729562176100,0.001827,67504.0,67503.0,0.3232716]
[1729562176320,0.001827,67504.0,67503.0,0.1751306]
[1729562176529,0.001827,67504.0,67503.0,0.3232716]
[1729562176955,0.001827,67504.0,67503.0,0.1751306]
[1729562177405,0.07440297,67504.0,67503.0,0.1751306]
[1729562177938,0.07440297,67504.0,67503.0,0.17057215]
[1729562178304,0.07440297,67504.0,67503.0,0.1800896]
[1729562178539,0.22254197,67504.0,67503.0,0.1800896]
[1729562179459,0.22254197,67504.0,67503.0,0.17057215]
[1729562179681,0.11875123,67504.0,67503.0,0.18005269]
[1729562179905,0.07440297,67504.0,67503.0,0.18005269]
[1729562180110,0.04617526,67504.0,67503.0,0.18005269]
[1729562181458,0.001827,67504.0,67503.0,0.17057215]
[1729562181663,0.001827,67504.0,67503.0,0.18005462]
[1729562182261,0.06834951,67504.0,67503.0,0.18005462]
[1729562183028,0.15644837,67504.0,67503.0,0.18005462]
[1729562183235,0.08992586,67504.0,67503.0,0.18005462]
[1729562183595,0.06841737,67504.0,67503.0,0.18005462]
[1729562184438,0.001827,67504.0,67503.0,0.18005462]
[1729562185325,0.16574273,67504.0,67503.0,0.18005462]
[1729562185708,0.16574451,67504.0,67503.0,0.18005462]
[1729562186676,0.16574451,67504.0,67503.0,0.32819562]
[1729562186997,0.16574451,67504.0,67503.0,0.18005462]
[1729562187463,0.25455484,67504.0,67503.0,0.18005462]
[1729562187698,0.25455484,67504.0,67503.0,0.17781903]
[1729562189413,0.25455484,67504.0,67503.0,0.32596003]
[1729562189637,0.06844654,67504.0,67503.0,0.32596003]
[1729562190076,0.001827,67504.0,67503.0,0.71358503]
[1729562190286,0.001827,67504.0,67503.0,0.62122947]
[1729562190510,0.001827,67504.0,67503.0,0.69972947]
[1729562190721,0.001827,67504.0,67503.0,0.69396506]
[1729562191161,0.009827,67504.0,67503.0,0.69496506]
[1729562191384,0.008827,67504.0,67503.0,0.68796506]
[1729562191600,0.022827,67504.0,67503.0,0.68896506]
[1729562192011,0.022827,67504.0,67503.0,0.68796506]
[1729562192245,0.000827,67504.0,67503.0,0.68696506]
[1729562192479,0.014827,67504.0,67503.0,0.68796506]
[1729562192720,0.016827,67504.0,67503.0,0.68896506]
[1729562192932,0.014827,67504.0,67503.0,0.68796506]
[1729562193138,0.016827,67504.0,67503.0,0.68896506]
[1729562193538,0.002827,67504.0,67503.0,0.68796506]
[1729562193964,0.003827,67504.0,67503.0,0.68896506]
[1729562194199,0.003827,67504.0,67503.0,0.79909006]
[1729562194429,0.001827,67504.0,67503.0,0.79809006]
[1729562194673,0.001827,67504.0,67503.0,0.89534016]
[1729562194904,0.001827,67504.0,67503.0,0.80009006]
[1729562195761,0.001827,67504.0,67503.0,0.84693631]
[1729562195968,0.003827,67504.0,67503.0,0.84693631]
[1729562196172,0.003827,67504.0,67503.0,0.84593631]
[1729562196173,0.001827,67504.0,67503.0,0.84593631]
[1729562196397,0.003827,67504.0,67503.0,0.84693631]
[1729562196626,0.002827,67504.0,67503.0,0.84493631]
[1729562196837,0.000827,67504.0,67503.0,0.84493631]
[1729562197054,0.010827,67504.0,67503.0,0.84693631]
[1729562197262,0.008827,67504.0,67503.0,0.84593631]
[1729562197480,0.000827,67504.0,67503.0,0.79909006]
[1729562197702,0.002827,67504.0,67503.0,0.80109006]
[1729562197916,0.010827,67504.0,67503.0,0.80109006]
[1729562198136,0.010827,67504.0,67503.0,0.99585794]
[1729562198369,0.002827,67504.0,67503.0,0.99485794]
[1729562198570,0.010827,67504.0,67503.0,0.99585794]
[1729562198792,0.008827,67504.0,67503.0,0.99485794]
[1729562199229,0.010827,67504.0,67503.0,0.99585794]
[1729562199435,0.010827,67504.0,67503.0,0.95004921]
[1729562199869,0.010827,67504.0,67503.0,0.80109006]
[1729562202423,0.35398827,67537.0,67503.0,0.80109006]
[1729562202424,0.04429619,67536.0,67531.0,0.00499955]
[1729562202662,0.04429619,67536.0,67535.0,0.148071]
[1729562202663,0.0788,67536.0,67535.0,0.148071]
[1729562202879,0.0788,67536.0,67535.0,0.15725914]
[1729562203090,0.000826,67537.0,67536.0,0.148069]
[1729562203323,0.000826,67537.0,67536.0,0.15306855]
[1729562203762,0.000826,67537.0,67536.0,0.16225669]
[1729562205557,0.001826,67537.0,67536.0,0.17625669]
[1729562205990,0.001826,67537.0,67536.0,0.17725669]
[1729562206400,0.001826,67537.0,67536.0,0.17625669]
[1729562206652,0.001826,67537.0,67536.0,0.19025669]
[1729562207756,0.149892,67537.0,67536.0,0.03718814]
[1729562208028,0.39583979,67537.0,67536.0,0.03718814]
[1729562208244,0.39583979,67537.0,67536.0,0.028]
[1729562208245,0.56450968,67537.0,67536.0,0.028]
[1729562208699,0.56350968,67537.0,67536.0,0.014]
[1729562209131,0.148079,67532.0,67529.0,0.22312298]
[1729562209366,0.0769,67531.0,67530.0,0.14895915]
[1729562209579,0.0769,67531.0,67530.0,0.1580835]
[1729562210430,0.22498,67531.0,67530.0,0.1580835]
[1729562210664,0.39364989,67531.0,67530.0,0.14895915]
[1729562211087,0.39364989,67531.0,67530.0,0.15495915]
[1729562211297,0.39364989,67531.0,67530.0,0.16913868]
[1729562211506,0.39364989,67531.0,67530.0,0.15995915]
[1729562211716,0.39364989,67531.0,67530.0,0.15495915]
[1729562211968,0.39364989,67531.0,67530.0,0.16413947]
[1729562212183,0.0769,67531.0,67530.0,0.30622147]
[1729562212424,0.0769,67531.0,67530.0,0.29704115]
[1729562212626,0.0769,67531.0,67530.0,0.31022147]
[1729562212838,0.0769,67531.0,67530.0,0.30622147]
[1729562213281,0.0769,67531.0,67530.0,0.31422147]
[1729562213484,0.0769,67531.0,67530.0,0.30922147]
[1729562213686,0.0769,67531.0,67530.0,0.30622147]
[1729562213897,0.0769,67531.0,67530.0,0.31622147]
[1729562214095,0.0769,67531.0,67530.0,0.32522147]
[1729562216791,0.077727,67531.0,67530.0,0.32522147]
[1729562223993,0.077727,67531.0,67530.0,0.31622147]
[1729562224450,0.077727,67531.0,67530.0,0.32422147]
[1729562224857,0.077727,67531.0,67530.0,0.31422147]
[1729562225069,0.077727,67531.0,67530.0,0.32322147]
[1729562225478,0.077727,67531.0,67530.0,0.31422147]
[1729562225730,0.077727,67531.0,67530.0,0.31622147]
[1729562225944,0.1003066,67531.0,67530.0,0.32522147]
[1729562226380,0.1003066,67531.0,67530.0,0.17713947]
[1729562226618,0.077727,67531.0,67530.0,0.15813947]
[1729562226822,0.077727,67531.0,67530.0,0.17913947]
[1729562227526,0.077727,67531.0,67530.0,0.32722147]
[1729562227762,0.000827,67531.0,67530.0,0.32722147]
[1729562227993,0.000827,67531.0,67530.0,0.6225279]
[1729562228245,0.000827,67531.0,67530.0,0.6395279]
[1729562228470,0.000827,67531.0,67530.0,0.51889091]
[1729562228696,0.000827,67531.0,67530.0,0.50789091]
[1729562229345,0.000827,67531.0,67530.0,0.52089091]
[1729562229581,0.000827,67531.0,67530.0,0.53089091]
[1729562230024,0.000827,67531.0,67530.0,0.52089091]
[1729562230240,0.000827,67531.0,67530.0,0.53289091]
[1729562238564,0.083027,67531.0,67530.0,0.33622102]
[1729562239510,0.083027,67531.0,67530.0,0.18313947]
[1729562240147,0.083027,67531.0,67530.0,0.33622102]
[1729562240363,0.083027,67531.0,67530.0,0.18813902]
[1729562241513,0.083027,67531.0,67530.0,0.18313947]
[1729562241736,0.65219254,67531.0,67530.0,0.17395915]
[1729562241957,0.65227327,67531.0,67530.0,0.17395915]
[1729562242392,0.56354304,67531.0,67530.0,0.16195915]
[1729562242607,0.56354304,67531.0,67530.0,0.16295915]
[1729562243243,0.91082001,67531.0,67530.0,0.013]
[1729562243463,0.80000813,67531.0,67530.0,0.015]
[1729562243678,0.90000813,67531.0,67530.0,0.015]
[1729562243890,0.90000813,67531.0,67522.0,0.22312298]
[1729562243891,0.223797,67523.0,67522.0,0.22312298]
[1729562244111,0.59176378,67523.0,67522.0,0.37208213]
[1729562244330,0.59176378,67523.0,67522.0,0.00876509]
[1729562244539,0.61152758,67523.0,67522.0,0.00876509]
[1729562244789,0.148106,67519.0,67518.0,0.001652]
[1729562245018,0.19245958,67521.0,67518.0,0.15061115]
[1729562245237,0.148104,67520.0,67519.0,0.14895915]
[1729562245444,0.19246158,67520.0,67519.0,0.15772424]
[1729562245648,0.27476909,67520.0,67519.0,0.15772424]
[1729562246321,0.04435758,67521.0,67519.0,0.15772424]
[1729562246745,0.19245958,67521.0,67519.0,0.15772424]
[1729562247163,0.04435758,67521.0,67519.0,0.30582924]
[1729562247343,0.04435758,67521.0,67519.0,0.15772424]
[1729562247822,0.04435758,67522.0,67519.0,0.15095915]
[1729562248047,0.04435758,67522.0,67519.0,0.15295915]
[1729562248251,0.04435758,67522.0,67519.0,0.15095915]
[1729562248456,0.148103,67521.0,67519.0,0.15095915]
[1729562248724,0.148103,67521.0,67519.0,0.14895915]
[1729562248934,0.04435758,67522.0,67520.0,0.00887706]
[1729562249150,0.04435758,67522.0,67521.0,0.14895915]
[1729562249567,0.33916989,67523.0,67521.0,0.14895915]
[1729562249568,0.21485758,67523.0,67521.0,0.14895915]
[1729562249783,0.36295458,67523.0,67521.0,0.15783621]
[1729562250441,0.1705,67523.0,67521.0,0.15783621]
[1729562250674,0.318598,67523.0,67521.0,0.15783621]
[1729562250877,0.36295558,67523.0,67521.0,0.16283621]
[1729562251323,0.36295558,67523.0,67521.0,0.16683621]
[1729562251536,0.318598,67523.0,67521.0,0.16183621]
[1729562251759,0.0757,67523.0,67521.0,0.15783621]
[1729562252006,0.0757,67523.0,67522.0,0.148099]
[1729562252216,0.0757,67523.0,67522.0,0.29705815]
[1729562252684,0.0757,67523.0,67522.0,0.30593521]
[1729562252909,0.0757,67523.0,67522.0,0.15783621]
[1729562253629,0.0757,67523.0,67522.0,0.16383621]
[1729562254080,0.1392858,67523.0,67522.0,0.16383621]
[1729562254292,0.0757,67523.0,67522.0,0.16383621]
[1729562254950,0.0757,67523.0,67522.0,0.16883621]
[1729562256733,0.04430844,67527.0,67525.0,0.148092]
[1729562256944,0.04430844,67527.0,67526.0,0.15786105]
[1729562257376,0.12210844,67528.0,67526.0,0.15786105]
[1729562257580,0.04513544,67531.0,67526.0,0.15786105]
[1729562257829,0.2149498,67530.0,67526.0,0.15786105]
[1729562258057,0.148084,67529.0,67526.0,0.15786105]
[1729562258508,0.148087,67528.0,67526.0,0.15786105]
[1729562258724,0.55542424,67530.0,67526.0,0.15786105]
[1729562258940,0.16866989,67528.0,67526.0,0.15786105]
[1729562259355,0.16866989,67528.0,67526.0,0.15986105]
[1729562259563,0.16866989,67528.0,67526.0,0.15786105]
[1729562260608,0.19239244,67530.0,67526.0,0.16086105]
[1729562260824,0.148084,67530.0,67526.0,0.16086105]
[1729562261321,0.148907,67531.0,67526.0,0.30995005]
[1729562261546,0.148082,67530.0,67526.0,0.16086105]
[1729562261943,0.148082,67530.0,67526.0,0.16186105]
[1729562262355,0.000827,67531.0,67526.0,0.15786105]
[1729562262774,0.000827,67531.0,67527.0,0.148088]
[1729562263017,0.148907,67531.0,67528.0,0.14895915]
[1729562263227,0.148907,67531.0,67528.0,0.15785375]
[1729562263646,0.148907,67531.0,67530.0,0.148082]
[1729562263647,0.000827,67531.0,67530.0,0.148082]
[1729562263859,0.002827,67531.0,67530.0,0.29704115]
[1729562264156,0.000827,67531.0,67530.0,0.29704115]
[1729562264388,0.000827,67531.0,67530.0,0.30593575]
[1729562266099,0.000827,67531.0,67530.0,0.32893575]
[1729562273475,0.000827,67531.0,67530.0,0.3339353]
[1729562275815,0.1637969,67531.0,67530.0,0.1875053]
[1729562276022,0.224507,67531.0,67530.0,0.18250575]
[1729562277517,0.076427,67531.0,67530.0,0.18250575]
[1729562277695,0.224507,67531.0,67530.0,0.18250575]
[1729562277897,0.076427,67531.0,67530.0,0.17361115]
[1729562278098,0.16573701,67531.0,67530.0,0.18243086]
[1729562278492,0.076427,67531.0,67530.0,0.33051286]
[1729562278697,0.076427,67531.0,67530.0,0.18243086]
[1729562279756,0.076427,67531.0,67530.0,0.33051286]
[1729562280589,0.076427,67531.0,67530.0,0.18243086]
[1729562280802,0.076427,67531.0,67530.0,0.33051286]
[1729562282593,0.12076231,67531.0,67530.0,0.33051286]
[1729562283270,0.12076231,67531.0,67530.0,0.31851286]
[1729562283493,0.076427,67531.0,67530.0,0.31851286]
[1729562283712,0.076427,67531.0,67530.0,0.31251286]
[1729562284323,0.12076231,67531.0,67530.0,0.16843086]
[1729562284580,0.12078727,67531.0,67530.0,0.31651286]
[1729562284801,0.076427,67531.0,67530.0,0.31251286]
[1729562285016,0.076427,67531.0,67530.0,0.30751286]
[1729562285225,0.076427,67531.0,67530.0,0.31751286]
[1729562285434,0.076427,67531.0,67530.0,0.32851286]
[1729562285653,0.12079383,67531.0,67530.0,0.32851286]
[1729562285870,0.12079481,67531.0,67530.0,0.32851286]
[1729562286519,0.076427,67531.0,67530.0,0.32851286]
[1729562287229,0.14297724,67531.0,67530.0,0.32851286]
[1729562287436,0.14297724,67531.0,67530.0,0.18043086]
[1729562287646,0.076427,67531.0,67530.0,0.18043086]
[1729562288075,0.24118059,67531.0,67530.0,0.18043086]
[1729562288293,0.24118059,67531.0,67530.0,0.32851286]
[1729562288798,0.17462346,67531.0,67530.0,0.32851286]
[1729562289234,0.076427,67531.0,67530.0,0.32851286]
[1729562290571,0.14298413,67531.0,67530.0,0.32851286]
[1729562294371,0.06738413,67531.0,67530.0,0.32851286]
[1729562295792,0.000827,67531.0,67530.0,0.32851286]
[1729562296624,0.06742535,67531.0,67530.0,0.32851286]
[1729562297044,0.06742525,67531.0,67530.0,0.32851286]
[1729562297257,0.06742578,67531.0,67530.0,0.32851286]
[1729562297702,0.000827,67531.0,67530.0,0.32851286]
[1729562297921,0.06743395,67531.0,67530.0,0.32851286]
[1729562298798,0.000827,67531.0,67530.0,0.32851286]
[1729562299525,0.25350213,67531.0,67530.0,0.32851286]
[1729562300082,0.16475929,67531.0,67530.0,0.32851286]
[1729562301573,0.000827,67531.0,67530.0,0.32851286]
[1729562303519,0.06745555,67531.0,67530.0,0.32851286]
[1729562303979,0.000827,67531.0,67530.0,0.32851286]
[1729562304312,0.0674713,67531.0,67530.0,0.32851286]
[1729562304537,0.000827,67531.0,67530.0,0.32851286]
[1729562304736,0.06747434,67531.0,67530.0,0.32851286]
[1729562304961,0.06747426,67531.0,67530.0,0.32851286]
[1729562305355,0.000827,67531.0,67530.0,0.32851286]
[1729562306062,0.16485568,67531.0,67530.0,0.32851286]
[1729562306648,0.000827,67531.0,67530.0,0.31851286]
[1729562306875,0.000827,67531.0,67530.0,0.32251286]
[1729562307282,0.000827,67531.0,67530.0,0.31151286]
[1729562307494,0.000827,67531.0,67530.0,0.31751286]
[1729562307923,0.000827,67531.0,67530.0,0.30751286]
[1729562308276,0.000827,67531.0,67530.0,0.31551286]
[1729562308803,0.06749288,67531.0,67530.0,0.31551286]
[1729562309162,0.06749288,67531.0,67530.0,0.32251286]
[1729562309531,0.000827,67531.0,67530.0,0.32251286]
[1729562309732,0.06749568,67531.0,67530.0,0.32251286]
[1729562310302,0.06749496,67531.0,67530.0,0.32251286]
[1729562310507,0.06749544,67531.0,67530.0,0.32251286]
[1729562312723,0.000827,67531.0,67530.0,0.32251286]
[1729562313081,0.16489267,67531.0,67530.0,0.32251286]
[1729562313285,0.000827,67531.0,67530.0,0.32251286]
[1729562313951,0.16489267,67531.0,67530.0,0.32251286]
[1729562314101,0.000827,67531.0,67530.0,0.32251286]
[1729562314312,0.16489236,67531.0,67530.0,0.32251286]
[1729562314514,0.1648927,67531.0,67530.0,0.32251286]
[1729562314693,0.000827,67531.0,67530.0,0.32251286]
[1729562315350,0.16489101,67531.0,67530.0,0.32251286]
[1729562315912,0.16489149,67531.0,67530.0,0.32251286]
[1729562316802,0.000827,67531.0,67530.0,0.32251286]
[1729562328465,0.16488924,67531.0,67530.0,0.32251286]
[1729562329092,0.000827,67531.0,67530.0,0.32251286]
[1729562329810,0.16489153,67531.0,67530.0,0.32251286]
[1729562330638,0.06749328,67531.0,67530.0,0.32251286]
[1729562330846,0.000827,67531.0,67530.0,0.32251286]
[1729562331473,0.16489133,67531.0,67530.0,0.32251286]
[1729562332347,0.25377993,67531.0,67530.0,0.32251286]
[1729562332551,0.16489133,67531.0,67530.0,0.32251286]
[1729562333213,0.25378347,67531.0,67530.0,0.32251286]
[1729562333977,0.1648928,67531.0,67530.0,0.32251286]
[1729562334407,0.25378347,67531.0,67530.0,0.32251286]
[1729562336844,0.1648928,67531.0,67530.0,0.32251286]
[1729562339171,0.25378347,67531.0,67530.0,0.32251286]
[1729562341569,0.000827,67531.0,67530.0,0.32751241]
[1729562341779,0.000827,67531.0,67530.0,0.49661241]
[1729562342212,0.000827,67531.0,67530.0,0.42121241]
[1729562342629,0.000827,67531.0,67530.0,0.41421241]
[1729562342848,0.000827,67531.0,67530.0,0.32751241]
[1729562343498,0.000827,67531.0,67530.0,0.31251241]
[1729562343979,0.000827,67531.0,67530.0,0.32351241]
[1729562344682,0.01202375,67531.0,67530.0,0.18043086]
[1729562344906,0.000827,67531.0,67530.0,0.33351241]
[1729562345544,0.04526389,67531.0,67530.0,0.33351241]
[1729562347957,0.04526389,67531.0,67530.0,0.32851286]
[1729562348402,0.000827,67531.0,67530.0,0.17998565]
[1729562348622,0.06751131,67531.0,67530.0,0.17998565]
[1729562349041,0.06751131,67531.0,67530.0,0.17116594]
[1729562349479,0.06751131,67531.0,67530.0,0.17821939]
[1729562349741,0.18941804,67531.0,67530.0,0.17821939]
[1729562349946,0.16716512,67531.0,67530.0,0.32630139]
[1729562350377,0.16716583,67531.0,67530.0,0.32630139]
[1729562351485,0.1671645,67531.0,67530.0,0.32630139]
[1729562351710,0.26455204,67531.0,67530.0,0.32630139]
[1729562351950,0.16716455,67531.0,67530.0,0.17821939]
[1729562352172,0.353431,67531.0,67530.0,0.17821939]
[1729562352416,0.25375238,67531.0,67530.0,0.17821939]
[1729562352631,0.25374696,67531.0,67530.0,0.17821939]
[1729562352843,0.000827,67531.0,67530.0,0.17821939]
[1729562353262,0.000827,67531.0,67530.0,0.32630139]
[1729562353466,0.06748424,67531.0,67530.0,0.17821939]
[1729562353829,0.13753904,67531.0,67530.0,0.17821939]
[1729562354026,0.07088138,67531.0,67530.0,0.32630139]
[1729562354231,0.13753828,67531.0,67530.0,0.32630139]
[1729562355118,0.07088138,67531.0,67530.0,0.32630139]
[1729562355343,0.07088138,67531.0,67530.0,0.17821939]
[1729562355705,0.000827,67531.0,67530.0,0.17821939]
[1729562356795,0.08970551,67531.0,67530.0,0.32630139]
[1729562357007,0.000827,67531.0,67530.0,0.17821939]
[1729562357220,0.08970551,67531.0,67530.0,0.17821939]
[1729562357431,0.25374521,67531.0,67530.0,0.32630139]
[1729562357829,0.000827,67531.0,67530.0,0.32630139]
[1729562358237,0.16485921,67531.0,67530.0,0.32630139]
[1729562358458,0.000827,67531.0,67530.0,0.32630139]
[1729562359025,0.06748029,67531.0,67530.0,0.32630139]
[1729562359250,0.000827,67531.0,67530.0,0.32630139]
[1729562359622,0.06747972,67531.0,67530.0,0.32630139]
[1729562360048,0.16485433,67531.0,67530.0,0.32630139]
[1729562360456,0.06747935,67531.0,67530.0,0.32630139]
[1729562361084,0.06747882,67531.0,67530.0,0.32630139]
[1729562361873,0.000827,67531.0,67530.0,0.32630139]
[1729562362288,0.06747882,67531.0,67530.0,0.32630139]
[1729562364045,0.06747882,67531.0,67530.0,0.17821939]
[1729562364254,0.06747882,67531.0,67530.0,0.32630139]
[1729562366414,0.06748017,67531.0,67530.0,0.32630139]
[1729562367696,0.000827,67531.0,67530.0,0.30530139]
[1729562367901,0.000827,67531.0,67530.0,0.30930139]
[1729562368527,0.000827,67531.0,67530.0,0.30530139]
[1729562368721,0.000827,67531.0,67530.0,0.30930139]
[1729562369400,0.06748017,67531.0,67530.0,0.31430139]
[1729562369839,0.000827,67531.0,67530.0,0.31430139]
[1729562370689,0.06748017,67531.0,67530.0,0.31430139]
[1729562371341,0.06748017,67531.0,67530.0,0.16621939]
[1729562371569,0.0674818,67531.0,67530.0,0.16621939]
[1729562371782,0.0674818,67531.0,67530.0,0.31430139]
[1729562372830,0.0674818,67531.0,67530.0,0.16621939]
[1729562375236,0.0674818,67531.0,67530.0,0.31430139]
[1729562376403,0.0674805,67531.0,67530.0,0.31430139]
[1729562377670,0.25373229,67531.0,67530.0,0.31430139]
[1729562378223,0.16486096,67531.0,67530.0,0.31430139]
[1729562378462,0.25373229,67531.0,67530.0,0.31430139]
[1729562379338,0.000827,67531.0,67530.0,0.31430139]
[1729562379746,0.16485542,67531.0,67530.0,0.31430139]
[1729562380199,0.000827,67531.0,67530.0,0.31430139]
[1729562380868,0.06747939,67531.0,67530.0,0.31430139]
[1729562381327,0.000827,67531.0,67530.0,0.31430139]
[1729562381548,0.06747894,67531.0,67530.0,0.31430139]
[1729562381964,0.000827,67531.0,67530.0,0.31430139]
[1729562382425,0.04526009,67531.0,67530.0,0.49610094]
[1729562382644,0.04526009,67531.0,67530.0,0.51910094]
[1729562382645,0.000827,67531.0,67530.0,0.51910094]
[1729562382870,0.000827,67531.0,67530.0,0.56711659]
[1729562383346,0.000827,67531.0,67530.0,0.51610094]
[1729562383801,0.000827,67531.0,67530.0,0.52310094]
[1729562384012,0.000827,67531.0,67530.0,0.52210094]
[1729562384502,0.001827,67531.0,67530.0,0.52110094]
[1729562384717,0.001827,67531.0,67530.0,0.51110094]
[1729562384906,0.002827,67531.0,67530.0,0.52710094]
[1729562387129,0.00264877,67531.0,67530.0,0.67606009]
[1729562389345,0.00264877,67531.0,67530.0,0.67806009]
[1729562389572,0.00264877,67531.0,67530.0,0.84018738]
[1729562390246,0.00264877,67531.0,67530.0,0.93818738]
[1729562390458,0.00264877,67531.0,67530.0,0.82197746]
[1729562390680,0.00264877,67531.0,67530.0,0.82397746]
[1729562390905,0.00264877,67531.0,67530.0,0.82197746]
[1729562392245,0.00264877,67531.0,67530.0,0.77606009]
[1729562392466,0.00264877,67531.0,67530.0,0.77806009]
[1729562393107,0.00264877,67531.0,67530.0,0.78398609]
[1729562393345,0.00264877,67531.0,67530.0,0.63302694]
[1729562393572,0.00264877,67531.0,67530.0,0.75123686]
[1729562396465,0.00264877,67531.0,67530.0,0.86744678]
[1729562396904,0.00264877,67531.0,67530.0,0.75123686]
[1729562397410,0.00064877,67531.0,67530.0,0.74923686]
[1729562397633,0.02364877,67531.0,67530.0,0.90019601]
[1729562399160,0.02364877,67531.0,67530.0,1.01640593]
[1729562399603,0.02364877,67531.0,67530.0,1.06224876]
[1729562400297,0.02364877,67531.0,67530.0,0.94603884]